bitfinex/quotes_ETHUSD_20220212
["timestamp","ask_amount","ask_price","bid_price","bid_amount"]
[1644667856884,1.4524265,2929.4,2929.2,0.00352145]
[1644667857085,3.59965277,2929.3,2929.2,0.00352145]
[1644667857290,3.59965277,2929.3,2928.9,0.00387628]
[1644667857291,1.4524265,2929.3,2928.9,0.00387628]
[1644667857485,1.4524265,2929.3,2928.6,1.17447628]
[1644667857688,1.4524265,2929.3,2929.2,0.00352156]
[1644667857887,1.95687185,2929.3,2929.2,0.00352156]
[1644667858485,1.95687185,2929.3,2928.7,0.00387628]
[1644667858685,1.4524265,2929.2,2928.7,0.00387628]
[1644667858885,1.4524265,2929.2,2929.1,0.00932238]
[1644667859086,1.7524265,2929.2,2929.1,0.00932238]
[1644667859531,0.3,2929.2,2929.1,0.00932238]
[1644667859731,0.80444535,2929.3,2928.7,0.00387628]
[1644667859936,0.80444535,2929.3,2929.0,0.0093225]
[1644667860933,0.80444535,2929.3,2928.7,0.00387628]
[1644667861136,0.80444535,2929.3,2929.0,0.0093225]
[1644667862233,0.80444535,2929.3,2928.7,0.00387628]
[1644667862440,0.80444535,2929.3,2929.0,0.0093225]
[1644667863275,0.80444535,2929.3,2928.7,0.00387628]
[1644667863576,0.80444535,2929.3,2929.0,0.0093225]
[1644667864577,0.80444535,2929.3,2928.8,0.00387628]
[1644667864778,0.80444535,2929.3,2929.0,0.0093225]
[1644667865679,0.80444535,2929.3,2928.8,0.00387628]
[1644667865979,0.80444535,2929.3,2929.0,0.0093225]
[1644667867028,0.80444535,2929.3,2928.8,0.00387628]
[1644667867227,0.80444535,2929.3,2929.0,0.0093225]
[1644667868226,0.80444535,2929.3,2928.8,0.00387628]
[1644667868428,0.80444535,2929.3,2929.0,0.0093225]
[1644667869430,0.80444535,2929.3,2928.8,0.00387628]
[1644667869727,0.80444535,2929.3,2929.0,0.0093225]
[1644667870589,0.80444535,2929.3,2928.8,0.00387628]
[1644667870789,0.80444535,2929.3,2929.0,0.0093225]
[1644667871392,0.3,2929.3,2929.0,0.0093225]
[1644667871891,0.30932065,2929.6,2929.0,0.0093225]
[1644667872090,1.45266082,2929.5,2929.0,0.0093225]
[1644667872692,0.70273664,2929.4,2929.0,0.0093225]
[1644667872898,0.70273664,2929.4,2928.8,0.00387628]
[1644667873090,1.00273664,2929.4,2929.1,0.00932238]
[1644667873293,0.3,2929.4,2929.1,0.00932238]
[1644667873692,0.30932085,2929.6,2929.1,0.00932238]
[1644667873893,1.45264687,2929.5,2929.1,0.00932238]
[1644667874093,1.45264687,2929.5,2928.8,0.00387628]
[1644667874333,1.45264687,2929.4,2929.2,0.00932226]
[1644667874731,1.75264687,2929.4,2929.2,0.00932226]
[1644667874934,0.3,2929.4,2929.2,0.00932226]
[1644667875138,0.3,2929.4,2929.3,0.491]
[1644667875337,0.3,2929.6,2929.3,0.491]
[1644667875739,0.30932095,2929.6,2929.3,0.491]
[1644667876438,0.3,2929.6,2929.3,0.491]
[1644667876737,0.00932121,2929.6,2929.3,0.491]
[1644667876936,2.0824383,2930.2,2929.3,0.491]
[1644667877139,1.4524952,2930.1,2929.3,0.491]
[1644667877439,1.7524952,2930.1,2929.3,0.491]
[1644667877638,1.4524952,2930.0,2929.3,0.491]
[1644667877842,1.4524952,2929.9,2929.3,0.491]
[1644667878085,1.4524952,2929.8,2929.3,0.491]
[1644667878283,2.0824383,2930.2,2929.3,0.491]
[1644667878484,1.45241941,2930.1,2929.3,0.491]
[1644667878887,1.75241941,2930.1,2929.3,0.491]
[1644667879084,1.45241941,2930.0,2929.3,0.491]
[1644667879288,1.45241941,2929.9,2929.4,0.00352096]
[1644667879485,1.45241941,2929.9,2929.4,0.49452096]
[1644667880086,1.45241941,2929.9,2929.4,0.491]
[1644667880285,1.45241941,2929.9,2929.4,0.49452096]
[1644667880701,1.45241941,2929.9,2928.2,7.81164058]
[1644667880702,0.01218453,2929.5,2928.2,7.81164058]
[1644667880898,0.01218453,2929.5,2927.5,1.2409]
[1644667880899,0.01264757,2928.6,2927.8,0.25]
[1644667881094,0.01264757,2928.6,2927.6,1.154]
[1644667881295,1.4530485,2928.5,2927.1,7.23308293]
[1644667881489,1.4530485,2928.5,2927.1,7.113]
[1644667881490,1.6236485,2928.5,2927.1,7.113]
[1644667881730,1.4530485,2928.4,2927.1,7.113]
[1644667881933,5.4440485,2928.4,2927.1,7.113]
[1644667882130,1.4530485,2928.3,2927.1,7.113]
[1644667882328,1.4530485,2928.3,2926.9,7.46]
[1644667882329,3.5,2928.2,2926.9,7.46]
[1644667882529,1.4530485,2928.1,2926.9,7.46]
[1644667882727,0.54460253,2928.0,2926.9,7.46]
[1644667882929,1.03560253,2928.0,2926.9,7.46]
[1644667883128,3.73961733,2927.9,2926.9,7.46]
[1644667883530,0.491,2927.9,2926.9,7.46]
[1644667883729,3.49220356,2927.8,2926.9,7.46]
[1644667883929,3.49220356,2927.8,2927.3,0.00352648]
[1644667884133,3.79220356,2927.8,2927.3,0.00352648]
[1644667884933,3.79220356,2927.8,2926.9,7.46]
[1644667885133,3.96300356,2927.8,2926.9,7.46]
[1644667885331,0.4708,2927.8,2927.4,0.00932316]
[1644667886315,0.4708,2927.8,2927.5,0.0093231]
[1644667886916,0.13819997,2928.4,2927.5,0.0093231]
[1644667887114,1.2305,2928.9,2927.5,0.0093231]
[1644667887314,1.4531367,2928.8,2927.6,0.16265226]
[1644667887514,1.4531367,2928.7,2927.6,0.16265226]
[1644667887714,1.45311308,2928.6,2927.8,0.00932268]
[1644667887914,0.17991878,2929.0,2928.0,0.59647475]
[1644667888114,1.45308706,2928.9,2928.0,0.59647475]
[1644667888522,1.45308706,2928.9,2928.1,3.80774078]
[1644667888716,0.1706,2929.3,2928.1,0.46265226]
[1644667888914,0.00932241,2929.0,2928.3,0.00932472]
[1644667889114,1.45297096,2928.9,2928.3,0.00932472]
[1644667889556,0.00932241,2929.0,2928.3,0.00932472]
[1644667889757,1.45296357,2928.9,2928.2,0.16265226]
[1644667889958,0.13819997,2929.4,2928.5,0.00868607]
[1644667889959,0.00868436,2929.0,2928.5,0.00868607]
[1644667890159,1.45301782,2928.9,2928.5,0.00868607]
[1644667890359,0.00868436,2929.0,2928.5,0.00868607]
[1644667890559,1.45296203,2928.9,2928.5,0.00868607]
[1644667890759,0.3,2928.9,2928.5,0.00868607]
[1644667890960,0.3,2929.0,2928.2,0.16265226]
[1644667891162,0.3,2929.0,2928.6,0.00868595]
[1644667891163,0.00868454,2929.0,2928.6,0.00868595]
[1644667891565,0.00868454,2929.0,2928.6,0.17133821]
[1644667892160,0.1706,2929.5,2928.6,0.16265226]
[1644667892460,0.00868472,2929.0,2928.6,0.17133839]
[1644667893279,0.1706,2929.5,2928.6,0.16265226]
[1644667893482,1.45289924,2929.4,2928.6,0.16265226]
[1644667893686,0.00872735,2929.0,2928.7,0.1706]
[1644667894483,0.3,2929.4,2928.7,0.1706]
[1644667894783,0.00872744,2929.0,2928.6,0.00872886]
[1644667895682,0.3,2929.3,2928.5,1.09599962]
[1644667895882,1.45292555,2929.2,2928.5,1.09599962]
[1644667896083,0.00872735,2929.0,2928.6,0.00872877]
[1644667896750,0.00872735,2929.0,2928.6,0.01259446]
[1644667896959,0.65050677,2929.7,2928.6,0.00386569]
[1644667897154,0.00872449,2929.0,2928.6,0.0125916]
[1644667898155,0.95050677,2929.7,2928.6,0.00386569]
[1644667898356,0.00872449,2929.0,2928.6,0.0125916]
[1644667899356,0.1706,2929.6,2928.6,0.00386569]
[1644667899558,0.00872449,2929.0,2928.6,0.0125916]
[1644667900487,0.1706,2929.6,2928.6,0.00386569]
[1644667900683,1.45287856,2929.5,2928.6,0.00386569]
[1644667900881,0.3,2929.7,2928.6,0.01259179]
[1644667900882,0.00872469,2929.0,2928.6,0.01259179]
[1644667901281,0.00872469,2929.0,2928.6,0.69070701]
[1644667901688,0.3,2929.7,2928.6,0.68198091]
[1644667901884,1.45289631,2929.6,2928.6,0.68198091]
[1644667902086,1.45289631,2929.5,2928.6,0.68198091]
[1644667902285,0.00872469,2929.0,2928.6,0.69070701]
[1644667902984,1.12110677,2929.8,2928.6,0.68198091]
[1644667903186,0.00872469,2929.0,2928.7,0.1706]
[1644667903383,0.00872469,2929.0,2928.7,0.4706]
[1644667904236,1.12110677,2929.8,2928.7,0.4706]
[1644667904432,1.4528767,2929.7,2929.0,0.00142799]
[1644667905634,0.00872426,2929.5,2929.0,0.00142799]
[1644667905834,1.4528767,2929.4,2929.0,0.00142799]
[1644667906234,1.7528767,2929.4,2929.0,0.00142799]
[1644667906436,1.4528767,2929.3,2929.0,0.00142799]
[1644667906838,1.46160114,2929.3,2929.0,0.00142799]
[1644667907037,1.4528767,2929.2,2929.0,0.00142799]
[1644667907240,1.7528767,2929.2,2929.0,0.00142799]
[1644667907535,1.4528767,2929.1,2929.0,0.00142799]
[1644667909285,1.45206108,2929.1,2929.0,0.00142799]
[1644667909693,0.00872459,2929.2,2929.0,0.00142799]
[1644667910291,0.13819997,2930.0,2929.0,0.00142799]
[1644667910492,0.00872453,2929.2,2929.1,0.1706]
[1644667910693,0.00872453,2929.2,2929.1,0.76271779]
[1644667911494,0.13819997,2930.0,2929.1,0.76271779]
[1644667911731,0.00872449,2929.3,2929.1,0.76271779]
[1644667912144,0.00872449,2929.3,2929.1,1.06271779]
[1644667912535,0.13819997,2930.0,2929.1,1.06271779]
[1644667912936,0.00872443,2929.3,2929.1,1.06271779]
[1644667913836,0.13819997,2930.0,2929.1,1.06271779]
[1644667914035,0.13819997,2930.1,2929.1,1.06271779]
[1644667914235,0.00872443,2929.3,2929.1,1.06271779]
[1644667914436,0.00872443,2929.3,2929.1,0.4706]
[1644667914639,0.00872443,2929.3,2929.1,0.1706]
[1644667915035,0.78870674,2930.1,2929.1,0.1706]
[1644667915236,0.00872442,2929.3,2929.1,0.1706]
[1644667915484,0.00872442,2929.3,2929.2,0.53178121]
[1644667916289,0.43819997,2930.1,2929.2,0.53178121]
[1644667916488,0.00872436,2929.4,2929.2,0.53178121]
[1644667916689,0.00872436,2929.4,2929.0,0.00142799]
[1644667916891,1.37898553,2929.1,2929.0,0.00142799]
[1644667917091,1.67898553,2929.1,2929.0,0.00142799]
[1644667924396,1.37898553,2929.1,2929.0,0.00142799]
[1644667925696,1.67898553,2929.1,2929.0,0.00142799]
[1644667929444,3.13196286,2929.1,2929.0,0.00142799]
[1644667933493,3.78246963,2929.1,2929.0,0.00142799]
[1644667933896,3.13196286,2929.1,2929.0,0.00142799]
[1644667941590,2.83196286,2929.1,2929.0,0.00142799]
[1644667941843,2.83110616,2929.1,2929.0,0.00142799]
[1644667942944,3.13110616,2929.1,2929.0,0.00142799]
[1644667945347,2.83110616,2929.1,2929.0,0.00142799]
[1644667946697,3.13110616,2929.1,2929.0,0.00142799]
[1644667947291,3.04014581,2929.1,2929.0,0.00142799]
[1644667948092,3.69065258,2929.1,2929.0,0.00142799]
[1644667948292,4.3874713,2929.1,2929.0,0.00142799]
[1644667956409,3.87362552,2929.1,2929.0,0.00142799]
[1644667959241,4.52413229,2929.1,2929.0,0.00142799]
[1644667963093,3.07115496,2929.1,2929.0,0.00142799]
[1644667963294,4.52416129,2929.1,2929.0,0.00142799]
[1644667964962,3.87365452,2929.1,2929.0,0.00142799]
[1644667965466,3.66461487,2929.1,2929.0,0.00142799]
[1644667966264,2.83113516,2929.1,2929.0,0.00142799]
[1644667967166,3.13113516,2929.1,2929.0,0.00142799]
[1644667967365,3.99534117,2929.1,2929.0,0.00142799]
[1644667968190,3.13113516,2929.1,2929.0,0.00142799]
[1644667972549,5.19844117,2929.1,2929.0,0.00142799]
[1644667972751,4.33423516,2929.1,2929.0,0.00142799]
[1644667972948,5.20491411,2929.1,2929.0,0.00142799]
[1644667977420,4.33423516,2929.1,2929.0,0.00142799]
[1644667979239,4.9868994,2929.1,2929.0,0.00142799]
[1644667979841,4.6910994,2929.1,2929.0,0.00142799]
[1644667981446,4.03843516,2929.1,2929.0,0.00142799]
[1644667982344,4.69112012,2929.1,2929.0,0.00142799]
[1644667984798,3.31299129,2929.1,2928.3,0.53200847]
[1644667984998,1.45300633,2929.0,2928.6,0.00880251]
[1644667985999,1.45300633,2929.0,2928.4,0.00386569]
[1644667986199,1.46180691,2929.0,2928.6,0.00880201]
[1644667986400,0.00880058,2929.0,2928.6,0.00880201]
[1644667987059,0.95268496,2929.1,2928.4,0.00386569]
[1644667987458,0.00880058,2929.0,2928.6,0.00880201]
[1644667988260,0.95268496,2929.1,2928.4,0.00386569]
[1644667988460,0.95268496,2929.1,2928.6,0.00880201]
[1644667988461,0.00880058,2929.0,2928.6,0.00880201]
[1644667989463,0.95268496,2929.1,2928.4,0.00386569]
[1644667989661,0.0088006,2929.0,2928.6,0.00880203]
[1644667990692,0.95268496,2929.1,2928.4,0.00386569]
[1644667990894,0.0088006,2929.0,2928.6,0.00880203]
[1644667991899,0.65268496,2929.1,2928.4,2.15761569]
[1644667992096,0.65268496,2929.1,2928.6,0.00880203]
[1644667992097,0.0088006,2929.0,2928.6,0.00880203]
[1644667992295,0.0088006,2929.0,2928.6,0.01266772]
[1644667993105,0.95268496,2929.1,2928.6,0.00386569]
[1644667993501,0.0088006,2929.0,2928.6,0.01266772]
[1644667994342,0.95268496,2929.1,2928.6,0.00386569]
[1644667994541,0.0088006,2929.0,2928.6,0.01266772]
[1644667995546,0.95268496,2929.1,2928.6,0.00386569]
[1644667995752,0.0088006,2929.0,2928.6,0.01266772]
[1644667995946,0.0088006,2929.0,2928.6,0.00880203]
[1644667996848,0.95268496,2929.1,2928.4,0.17446569]
[1644667997048,0.0088006,2929.0,2928.6,0.00880203]
[1644667997847,0.95268496,2929.1,2928.4,0.17446569]
[1644667998106,0.0088006,2929.0,2928.6,0.00880203]
[1644667999106,0.0088006,2929.0,2928.4,0.00386569]
[1644667999107,0.95268496,2929.1,2928.4,0.00386569]
[1644667999607,0.0088006,2929.0,2928.6,0.00880203]
[1644668000008,0.9108006,2929.0,2928.6,0.00880203]
[1644668000311,0.1706,2928.9,2928.4,0.00386569]
[1644668000510,0.1706,2928.9,2928.2,0.00386569]
[1644668000710,0.4706,2928.9,2928.6,0.00880203]
[1644668001308,1.02626783,2928.9,2928.6,0.00880203]
[1644668001508,1.02626783,2928.9,2927.7,0.00386569]
[1644668001751,1.02626783,2928.9,2928.6,0.00880193]
[1644668002654,1.02626783,2928.9,2928.6,0.00745034]
[1644668002854,1.02626783,2928.9,2927.7,0.00386569]
[1644668003055,2.06786783,2928.9,2928.6,0.00880193]
[1644668003957,2.06786783,2928.9,2927.8,0.03521651]
[1644668003958,2.06786783,2928.9,2927.7,0.00386569]
[1644668005712,2.06786783,2928.9,2927.2,6.94609084]
[1644668005713,6.44718055,2928.8,2927.2,6.94609084]
[1644668005927,6.44718055,2928.8,2926.2,3.53742588]
[1644668005928,0.0038,2927.7,2926.7,0.58856205]
[1644668006122,0.0038,2927.7,2925.3,1.32791512]
[1644668006123,5.0,2926.9,2925.3,1.32791512]
[1644668006319,5.0,2926.6,2925.3,1.32791512]
[1644668006515,3.991,2926.8,2925.3,1.32791512]
[1644668006516,0.1708,2926.5,2925.3,1.32791512]
[1644668006715,0.1708,2926.6,2925.3,1.9467382]
[1644668007017,2.96168009,2926.5,2925.3,1.9467382]
[1644668007220,0.4708,2926.4,2925.3,0.61882308]
[1644668007416,0.3,2926.4,2925.3,0.61882308]
[1644668007615,2.40675009,2926.5,2925.3,0.61882308]
[1644668007816,2.40675009,2926.5,2925.7,0.00933635]
[1644668008627,0.95256499,2926.5,2925.7,0.00933635]
[1644668008824,0.95256499,2926.5,2925.3,0.61882308]
[1644668009020,0.95256499,2926.5,2925.4,0.491]
[1644668009253,0.95256499,2926.5,2925.8,0.62760751]
[1644668009657,0.95256499,2926.5,2925.4,0.491]
[1644668010658,0.65256499,2926.5,2925.6,5.0]
[1644668010859,0.87008666,2926.8,2925.8,3.3]
[1644668011058,0.87008666,2926.8,2925.9,0.491]
[1644668011267,0.87008666,2926.8,2926.0,5.0]
[1644668011460,0.87008666,2926.8,2926.6,0.59035801]
[1644668011657,0.87008666,2926.8,2926.7,0.491]
[1644668012264,1.17008666,2926.8,2926.7,0.491]
[1644668012458,1.17008666,2926.8,2926.1,0.3]
[1644668012657,1.17008666,2926.8,2926.6,0.00932967]
[1644668013698,1.17008666,2926.8,2926.3,0.65869786]
[1644668013906,1.17008666,2926.8,2926.6,0.00932973]
[1644668014697,1.17008666,2926.8,2925.9,1.4345]
[1644668014898,1.17008666,2926.8,2926.2,0.1708]
[1644668015098,1.17008666,2926.8,2926.6,0.00932973]
[1644668015698,0.87008666,2926.8,2926.6,0.00932973]
[1644668015904,1.75,2926.7,2926.0,0.491]
[1644668016105,1.75,2926.7,2925.5,3.982]
[1644668016106,3.4708,2926.6,2925.5,3.982]
[1644668016301,3.4708,2926.6,2926.1,0.03732453]
[1644668016506,3.9618,2926.6,2926.1,0.03732453]
[1644668017173,5.41665,2926.6,2925.2,0.69518213]
[1644668017371,5.41665,2926.6,2926.0,0.00349825]
[1644668017372,8.91665,2926.6,2926.0,0.00349825]
[1644668017572,5.41665,2926.6,2926.0,0.00349825]
[1644668018375,4.07966666,2926.5,2925.0,1.0]
[1644668018574,4.07966666,2926.5,2924.9,3.8889]
[1644668018575,0.67112928,2926.4,2926.0,0.00933085]
[1644668018775,3.62499999,2926.3,2926.0,0.00933085]
[1644668018976,0.1708,2926.2,2926.0,0.00933085]
[1644668019181,1.1708,2926.2,2926.0,0.00933085]
[1644668019375,3.57608695,2926.1,2926.0,0.00933085]
[1644668019583,3.74688695,2926.1,2924.7,0.25]
[1644668019783,0.1708,2926.0,2925.2,0.03733114]
[1644668019983,0.4708,2926.0,2925.2,0.03733114]
[1644668020282,3.72666425,2925.9,2925.2,0.03733114]
[1644668020508,4.02666425,2925.9,2925.2,0.03733114]
[1644668020906,4.02666425,2925.9,2924.8,0.58303596]
[1644668021102,4.02666425,2925.9,2925.4,0.0093311]
[1644668021305,3.73034094,2925.9,2925.4,0.0093311]
[1644668021708,3.73034094,2925.9,2925.4,0.01320282]
[1644668021903,3.73034094,2925.9,2924.7,0.00387172]
[1644668022105,0.1708,2925.8,2924.7,0.00387172]
[1644668022304,2.02583,2925.8,2925.5,0.00933099]
[1644668022504,0.01866198,2925.4,2925.1,0.03732954]
[1644668023107,0.01866198,2925.4,2924.9,0.00386967]
[1644668024644,0.01866198,2925.4,2925.0,0.00347138]
[1644668025646,0.01866198,2925.4,2924.9,0.00386967]
[1644668025845,0.01866198,2925.4,2925.1,0.00933152]
[1644668026854,0.01866198,2925.4,2924.6,0.00386967]
[1644668027051,0.01866198,2925.4,2925.1,0.00933146]
[1644668027249,0.01866198,2925.4,2924.6,0.00053311]
[1644668027250,2.1,2925.3,2924.6,0.00053311]
[1644668027451,0.3,2925.3,2924.6,0.00053311]
[1644668027650,0.01866198,2925.4,2924.6,0.00053311]
[1644668028118,0.01866198,2925.4,2924.5,0.3]
[1644668028322,0.01866198,2925.4,2924.2,1.2233]
[1644668028523,0.01866198,2925.4,2924.3,7.4916]
[1644668028719,0.1708,2925.3,2924.3,7.4916]
[1644668029534,0.1708,2925.3,2924.5,0.00346503]
[1644668030321,0.1708,2925.3,2924.4,1.0]
[1644668030722,0.00933094,2925.0,2924.5,0.00933283]
[1644668030926,0.00933094,2925.0,2924.6,0.69991267]
[1644668031123,0.00933094,2925.0,2924.5,0.30933283]
[1644668031325,0.00933094,2925.0,2924.5,0.00933283]
[1644668031766,0.1708,2925.3,2924.2,1.2233]
[1644668031956,0.00933112,2924.9,2924.5,0.00933253]
[1644668032859,4.31970261,2925.1,2924.4,0.62380352]
[1644668033058,0.00933118,2924.8,2924.5,0.00933243]
[1644668033959,4.31970261,2925.1,2923.9,1.2422]
[1644668034159,4.31970261,2925.1,2924.5,0.00933233]
[1644668034160,0.00933124,2924.8,2924.5,0.00933233]
[1644668035261,4.01970261,2925.1,2924.2,1.51160444]
[1644668035509,0.00933124,2924.8,2924.5,0.00933233]
[1644668036314,4.01970261,2925.1,2924.2,0.51160444]
[1644668036812,0.00933124,2924.8,2924.5,0.00933233]
[1644668037520,4.31970261,2925.1,2924.2,0.51160444]
[1644668037914,0.00933124,2924.8,2924.5,0.00933233]
[1644668038716,4.31970261,2925.1,2924.2,0.51160444]
[1644668039115,0.00933124,2924.8,2924.5,0.00933233]
[1644668039956,4.31970261,2925.1,2924.2,0.51160444]
[1644668040358,0.00933124,2924.8,2924.5,0.00933233]
[1644668040757,0.00933124,2924.8,2924.7,0.71468721]
[1644668041159,0.4708,2925.1,2924.7,0.71468721]
[1644668041562,0.00933112,2924.9,2924.7,0.71468721]
[1644668042461,0.1708,2925.1,2924.7,0.71468721]
[1644668042766,0.00933106,2924.9,2924.7,0.71468721]
[1644668043000,0.00933106,2924.9,2924.8,0.0038629]
[1644668043204,0.00933106,2924.9,2924.7,0.70309851]
[1644668043601,0.1708,2925.2,2924.7,0.70309851]
[1644668043799,0.00933106,2924.9,2924.7,0.70309851]
[1644668044802,0.1708,2925.2,2924.7,0.70309851]
[1644668045001,0.00933106,2924.9,2924.7,0.70309851]
[1644668045902,0.1708,2925.2,2924.7,0.70309851]
[1644668046105,0.1708,2925.3,2924.7,1.00309851]
[1644668046305,0.01866198,2925.4,2924.8,0.0038629]
[1644668046306,0.00933106,2924.9,2924.8,0.0038629]
[1644668046504,0.00933106,2924.9,2924.7,1.00309851]
[1644668046746,0.00933106,2924.9,2924.7,6.49409851]
[1644668046946,0.00933106,2924.9,2924.7,1.19409851]
[1644668047150,0.01866198,2925.4,2924.7,1.00309851]
[1644668047349,0.01866198,2925.4,2924.8,0.0038629]
[1644668047549,0.00933106,2924.9,2924.8,0.0038629]
[1644668047747,0.00933106,2924.9,2924.7,1.00309851]
[1644668047953,0.00933106,2924.9,2924.7,0.70309851]
[1644668048351,0.01866198,2925.4,2924.7,1.00309851]
[1644668048551,0.01866198,2925.4,2924.8,0.0038629]
[1644668048749,0.00933106,2924.9,2924.8,0.0038629]
[1644668049050,0.00933106,2924.9,2924.7,1.00309851]
[1644668049650,0.01866198,2925.4,2924.7,1.00309851]
[1644668049850,0.01866198,2925.4,2925.3,0.57143511]
[1644668050051,0.01866198,2925.4,2925.3,1.35533511]
[1644668050254,0.01866198,2925.4,2925.3,1.65533511]
[1644668051099,0.01866198,2925.4,2925.3,5.15935677]
[1644668051299,0.01866198,2925.4,2925.3,2.65533511]
[1644668052001,0.01866198,2925.4,2925.3,6.28310999]
[1644668052203,0.01866198,2925.4,2925.3,6.45400999]
[1644668054858,0.1708,2926.7,2925.4,3.3]
[1644668055069,0.1708,2926.7,2925.6,5.0]
[1644668055070,1.45415989,2926.6,2925.6,5.0]
[1644668055262,0.333,2927.2,2925.8,0.2351]
[1644668055463,1.45396799,2927.1,2925.9,1.4290029]
[1644668055667,0.1708,2927.9,2926.0,4.65886287]
[1644668055668,2.09782889,2927.6,2926.0,4.65886287]
[1644668055860,0.87008666,2927.9,2926.1,2.8176]
[1644668055861,1.45396799,2927.5,2926.1,2.8176]
[1644668056061,1.45396799,2927.4,2927.1,0.55146375]
[1644668056263,0.6438609,2927.9,2926.3,3.7085]
[1644668056264,1.45396799,2927.3,2926.3,3.7085]
[1644668056461,1.45396799,2927.2,2926.3,1.6616]
[1644668056761,0.6438609,2927.9,2926.4,3.87207283]
[1644668057062,2.34280417,2928.4,2926.4,3.87207283]
[1644668057063,1.45385802,2927.8,2926.6,0.85427]
[1644668057261,1.45385802,2927.7,2926.7,0.1706]
[1644668057564,0.6438609,2928.0,2926.7,0.1706]
[1644668057565,1.45385802,2927.6,2926.7,0.1706]
[1644668057860,0.1708,2928.2,2927.0,0.69927903]
[1644668057861,1.45385802,2927.5,2927.0,0.69927903]
[1644668058097,1.45385802,2927.4,2927.0,0.69927903]
[1644668058304,1.45385802,2927.3,2927.0,0.69927903]
[1644668058499,0.3,2927.4,2927.0,0.69927903]
[1644668058701,1.45382467,2927.3,2927.0,0.69927903]
[1644668058901,1.45382467,2927.3,2926.9,0.1706]
[1644668059100,0.3,2927.3,2926.9,0.1706]
[1644668059307,0.6438609,2928.0,2926.9,0.1706]
[1644668059503,0.00932836,2927.2,2926.9,0.1706]
[1644668059902,0.00932836,2927.2,2927.0,0.50223607]
[1644668060415,0.00932836,2927.2,2927.1,4.06606702]
[1644668060607,0.03729637,2928.6,2927.1,4.06606702]
[1644668060608,0.1708,2928.3,2927.1,4.06606702]
[1644668060811,0.00932836,2927.2,2927.1,1.791]
[1644668061002,0.00932836,2927.2,2927.1,1.9616]
[1644668061601,0.1708,2928.3,2927.1,1.9616]
[1644668061852,1.45363403,2928.2,2927.5,0.59045247]
[1644668062055,1.45363403,2928.1,2927.5,0.59045247]
[1644668062353,1.45363403,2928.0,2927.5,0.59045247]
[1644668062554,1.45363403,2927.9,2927.5,0.59045247]
[1644668062755,0.1706,2928.4,2927.5,0.59045247]
[1644668062954,0.3,2927.9,2927.5,2.19285247]
[1644668063152,0.0093276,2927.9,2927.6,0.1706]
[1644668063357,0.3093276,2927.9,2927.6,0.1707]
[1644668063753,0.3093276,2927.9,2927.5,0.54925247]
[1644668063954,0.3,2927.9,2927.5,0.54925247]
[1644668064353,0.00590003,2927.9,2927.5,0.54925247]
[1644668065155,0.1706,2928.5,2927.5,0.54925247]
[1644668065356,1.45365189,2928.4,2927.5,0.54925247]
[1644668065605,0.00590003,2927.8,2927.5,0.54925247]
[1644668066404,0.1706,2928.3,2927.5,0.54925247]
[1644668066605,1.45366651,2928.2,2927.5,0.54925247]
[1644668066804,0.00590003,2927.8,2927.5,0.54925247]
[1644668067607,0.1706,2928.5,2927.5,0.54925247]
[1644668067807,0.00933326,2927.8,2927.5,0.54925247]
[1644668068811,0.1706,2928.5,2927.5,0.54925247]
[1644668069010,1.45357758,2928.4,2927.6,0.1706]
[1644668069247,1.45357758,2928.3,2927.6,0.1706]
[1644668069450,1.45357758,2928.3,2927.6,0.15895949]
[1644668070855,0.3,2928.4,2927.6,0.15895949]
[1644668071055,0.3,2928.4,2927.6,3.73192725]
[1644668071257,0.1706,2928.9,2927.6,3.73192725]
[1644668071455,0.03735529,2928.6,2928.2,0.69103909]
[1644668071656,1.45350476,2928.5,2928.2,0.69103909]
[1644668071855,1.45350476,2928.5,2927.8,0.3]
[1644668071856,1.75350476,2928.5,2927.8,0.3]
[1644668072157,0.3,2928.5,2927.8,0.3]
[1644668072358,0.03735529,2928.6,2927.8,0.3]
[1644668072558,0.1706,2929.0,2927.8,0.3]
[1644668072758,0.00934007,2928.3,2927.8,1.1539]
[1644668073612,0.1706,2928.8,2927.9,0.68409056]
[1644668073925,1.42829994,2929.1,2927.9,0.68409056]
[1644668073926,0.00934018,2928.2,2927.9,0.68409056]
[1644668074915,0.1706,2929.0,2928.6,0.51190127]
[1644668075118,1.45344837,2928.9,2927.9,3.0536]
[1644668075316,1.75344837,2928.9,2927.8,1.1539]
[1644668075515,1.45344837,2928.8,2927.8,1.1539]
[1644668075715,1.75344837,2928.8,2927.8,0.3]
[1644668075919,1.45344837,2928.7,2927.8,0.3]
[1644668076118,1.45344837,2928.7,2927.8,0.791]
[1644668076319,0.00933989,2928.4,2928.1,0.62825857]
[1644668077454,0.00933995,2928.4,2928.1,0.62825857]
[1644668078056,0.00933995,2928.4,2927.8,0.3]
[1644668078253,0.00933995,2928.4,2927.8,3.88705733]
[1644668078454,0.1706,2929.0,2927.8,0.3]
[1644668078654,0.00934012,2928.2,2927.8,0.3]
[1644668079756,0.1706,2929.0,2928.1,0.50684815]
[1644668079958,0.03735529,2928.6,2928.1,0.50684815]
[1644668080805,0.1706,2929.0,2928.1,0.50684815]
[1644668081003,1.45346211,2928.9,2927.8,0.3]
[1644668081204,0.00933983,2928.5,2927.8,0.3]
[1644668082011,0.4706,2928.8,2927.8,0.3]
[1644668082210,1.75345977,2928.7,2927.9,0.65484124]
[1644668082409,0.00934007,2928.3,2927.9,0.65484124]
[1644668083211,0.03735466,2928.7,2927.9,0.65484124]
[1644668083415,0.59545978,2927.8,2927.7,1.3695]
[1644668083613,0.59545978,2927.8,2927.7,0.76881751]
[1644668083812,0.89545978,2927.8,2927.7,0.76881751]
[1644668084677,0.89545978,2927.8,2927.7,0.1706]
[1644668085093,0.89545978,2927.8,2927.3,0.25]
[1644668085281,0.89545978,2927.8,2927.1,0.1706]
[1644668085478,0.72468506,2927.8,2927.1,0.1706]
[1644668085683,0.59545978,2927.8,2927.1,0.1706]
[1644668085878,0.59545978,2927.8,2926.8,1.1688]
[1644668086080,0.00934089,2927.6,2926.8,1.1688]
[1644668086880,0.59545978,2927.8,2926.6,0.1706]
[1644668087084,0.00903288,2927.3,2926.6,0.1706]
[1644668087284,0.00903288,2927.3,2926.5,7.9224]
[1644668087482,1.45401397,2927.2,2926.5,7.7516]
[1644668087694,0.00903288,2927.3,2926.6,0.1708]
[1644668088037,0.1708,2927.7,2927.0,0.68491696]
[1644668088231,1.45385295,2927.6,2927.0,0.68491696]
[1644668088427,0.00903315,2927.1,2927.0,0.68491696]
[1644668089227,0.1708,2927.7,2927.0,0.68491696]
[1644668089427,1.45388885,2927.6,2927.0,0.68491696]